lending/lending_fUSD_20251020
["ID","MTS","AMOUNT","RATE_DAILY","PERIOD"]
[391877523,1760948387327,-358.25216765,0.0003836,120]
[391877524,1760948387359,-358.25216765,0.0003836,120]
[391877525,1760948387391,-358.25216765,0.0003836,120]
[391877526,1760948387421,-358.25216765,0.0003836,120]
[391877527,1760948387454,-358.25216765,0.0003836,120]
[391877528,1760948387491,-358.25216765,0.0003836,120]
[391877529,1760948387525,-358.25216765,0.0003836,120]
[391877530,1760948387560,-358.25216765,0.0003836,120]
[391877531,1760948387595,-358.25216765,0.0003836,120]
[391877532,1760948387628,-358.25216765,0.0003836,120]
[391877533,1760948387661,-358.25216765,0.0003836,120]
[391877534,1760948387692,-358.25216765,0.0003836,120]
[391877535,1760948387723,-358.25216765,0.0003836,120]
[391877536,1760948387758,-358.25216765,0.0003836,120]
[391877537,1760948387790,-358.25216765,0.0003836,120]
[391877538,1760948387823,-358.25216765,0.0003836,120]
[391877539,1760948387855,-358.25216765,0.0003836,120]
[391877540,1760948387886,-358.25216765,0.0003836,120]
[391877541,1760948387918,-358.25,0.0003836,120]
[391877542,1760948387950,-835.92172451,0.0003836,120]
[391877543,1760948387982,-835.92172451,0.0003836,120]
[391877544,1760948388022,-835.92172451,0.0003836,120]
[391877545,1760948388064,-835.92172451,0.0003836,120]
[391877546,1760948388098,-835.92172451,0.0003836,120]
[391877547,1760948388135,-835.92172451,0.0003836,120]
[391877548,1760948388173,-835.92172451,0.0003836,120]
[391877549,1760948388208,-835.92172451,0.0003836,120]
[391877550,1760948388244,-835.92172451,0.0003836,120]
[391877551,1760948388279,-835.92172451,0.0003836,120]
[391877552,1760948388312,-835.92172451,0.0003836,120]
[391877553,1760948388347,-835.92172451,0.0003836,120]
[391877554,1760948388390,-835.92172451,0.0003836,120]
[391877555,1760948388424,-835.92172451,0.0003836,120]
[391877556,1760948388459,-835.92172451,0.0003836,120]
[391877557,1760948388493,-835.92172451,0.0003836,120]
[391877558,1760948388721,-835.92172451,0.0003836,120]
[391877559,1760948388757,-835.92172451,0.0003836,120]
[391877560,1760948388791,-835.92172451,0.0003836,120]
[391877561,1760948388823,-835.92,0.0003836,120]
[391877562,1760948388853,-186.89446297,0.0003836,120]
[391877563,1760948388884,-186.89,0.0003836,120]
[391877564,1760948388916,-900.0,0.00038362,30]
[391877565,1760948388948,-5300.0,0.00038376,30]
[391877566,1760948388981,-1000.0,0.00038453,30]
[391877567,1760948389013,-1000.0,0.00038458,30]
[391877568,1760948389047,-1000.0,0.00038466,30]
[391877569,1760948389079,-701.89041,0.00038488,30]
[391877570,1760948389111,-48500.0,0.000385,120]
[391877571,1760948389143,-558.13551783,0.00038505,30]
[391877572,1760948389174,-500.0,0.00038519,30]
[391877573,1760948389205,-500.0,0.00038522,30]
[391877574,1760948389239,-701.89041,0.00038688,30]
[391877575,1760948389269,-700.0,0.00038745,30]
[391877576,1760948389299,-5300.0,0.00038745,30]
[391877577,1760948389332,-800.0,0.00038799,30]
[391877578,1760948389364,-13110.26577463,0.000388,120]
[391877579,1760948389395,-1800.0,0.00038832,30]
[391877580,1760948389426,-600.0,0.00038849,30]
[391877581,1760948389459,-315.31786416,0.000389,120]
[391877582,1760948389493,-2000.0,0.00038932,30]
[391877583,1760948389526,-500.71357989,0.00038965,30]
[391877584,1760948389562,-1328.27367305,0.0003899,120]
[391877585,1760948389599,-4967.0,0.00039,120]
[391877586,1760948389635,-224.29503319,0.00039,120]
[391877587,1760948389671,-500.0,0.00039022,30]
[391877588,1760948389707,-1000.0,0.00039063,30]
[391877589,1760948389747,-701.89041,0.00039088,30]
[391877590,1760948389785,-10091.11285638,0.000391,120]
[391877591,1760948389820,-1777.19271731,0.000391,120]
[391877592,1760948389856,-2000.0,0.00039161,30]
[391877593,1760948389892,-5300.0,0.00039202,30]
[391877594,1760948389926,-5300.0,0.00039258,30]
[391877595,1760948389967,-701.89041,0.00039288,30]
[391877596,1760948390005,-800.0,0.00039358,30]
[391877597,1760948390040,-2000.0,0.0003938,30]
[391877598,1760948390074,-156.0,0.000394,120]
[391877599,1760948390107,-800.0,0.00039408,30]
[391877600,1760948390140,-600.0,0.00039415,30]
[391877601,1760948390174,-3327.27,0.00039452,120]
[391877602,1760948390206,-1000.0,0.00039466,30]
[391877603,1760948390238,-800.0,0.00039469,30]
[391877604,1760948390269,-700.0,0.00039471,30]
[391877605,1760948390301,-701.89041,0.00039488,30]
[391877606,1760948390334,-5300.0,0.00039502,30]
[391877607,1760948390370,-1800.0,0.00039516,30]
[391877608,1760948390403,-700.0,0.00039524,30]
[391877609,1760948390435,-1800.0,0.00039538,30]
[391877610,1760948390466,-800.0,0.00039555,30]
[391877611,1760948390498,-767.85003955,0.00039596,30]
[391877612,1760948390529,-2000.0,0.00039658,30]
[391877613,1760948390561,-500.0,0.0003966,120]
[391877614,1760948390592,-701.89041,0.00039688,30]
[391877615,1760948390625,-1099.99999999,0.000397,120]
[391877616,1760948390660,-408.27831683,0.00039769,30]
[391877617,1760948390692,-314.83875983,0.00039776,30]
[391877618,1760948390725,-1092.22561195,0.00039798,30]
[391877619,1760948390759,-1202.22306245,0.000398,120]
[391877620,1760948390792,-9754.40539748,0.00039802,30]
[391877621,1760948390823,-3170.30887689,0.00039815,30]
[391877622,1760948390856,-3643.56836961,0.00039865,30]
[391877623,1760948390888,-701.89041,0.00039888,30]
[391877624,1760948390919,-1222.48833326,0.00039914,30]
[391877625,1760948390950,-483.98855241,0.00039999,31]
[391877626,1760948390981,-398.07952237,0.00039999,31]
[391877627,1760948391013,-394.45030893,0.00039999,31]
[391877628,1760948391045,-568.75288328,0.00039999,31]
[391877629,1760948391077,-500.0,0.00039999,31]
[391877630,1760948391109,-578.70105469,0.00039999,31]
[391877631,1760948391141,-408.37376499,0.00039999,31]
[391877632,1760948391172,-50000.0,0.0004,40]
[391877633,1760948391202,-215.86,0.0004,30]
[391877634,1760948391233,-289.35406345,0.0004,120]
[391877635,1760948391264,-370.84501622,0.0004,120]
[391877636,1760948391293,-165.25939802,0.0004,30]
[391877637,1760948391323,-42115.06852147,0.0004,120]
[391877638,1760948391352,-2500.0,0.0004,120]
[391877639,1760948391382,-2500.0,0.0004,120]
[391877640,1760948391411,-2500.0,0.0004,120]
[391877641,1760948391440,-2500.0,0.0004,120]
[391877642,1760948391468,-2500.0,0.0004,120]
[391877643,1760948391498,-2000.0,0.0004,120]
[391877644,1760948391530,-196.22,0.0004,120]
[391877645,1760948391562,-549.58,0.0004,120]
[391877646,1760948391593,-816.34621063,0.00040004,30]
[391877647,1760948391624,-1505.98429429,0.00040042,30]
[391877648,1760948391655,-701.89041,0.00040088,30]
[391877649,1760948391687,-701.89041,0.00040288,30]
[391877650,1760948391718,-10091.11285638,0.000403,120]
[391877651,1760948391752,-1777.19271731,0.000403,120]
[391877652,1760948391782,-1000.0,0.00040466,60]
[391877653,1760948391814,-701.89041,0.00040488,30]
[391877654,1760948391846,-188.63910938,0.000405,120]
[391877655,1760948391877,-30000.0,0.000405,120]
[391877656,1760948391907,-2500.0,0.000405,120]
[391877657,1760948391943,-2500.0,0.000405,120]
[391877658,1760948391978,-2500.0,0.000405,120]
[391877659,1760948392014,-3327.27,0.00040547,120]
[391877660,1760948392047,-701.89041,0.00040688,30]
[391877661,1760948392078,-1528.0,0.000408,120]
[391877662,1760948392243,-1527.0,0.000408,120]
[391877663,1760948392276,-150.0,0.00040856,120]
[391877664,1760948392307,-701.89041,0.00040888,30]
[391877665,1760948392339,-153.0,0.000409,120]
[391877666,1760948392370,-500.0,0.00040994,120]
[391877667,1760948392404,-50000.0,0.00041,41]
[391877668,1760948392434,-2571.18153825,0.00041,30]
[391877669,1760948392464,-2615.47636248,0.00041,120]
[391877670,1760948392494,-2358.64324909,0.00041,120]
[391877671,1760948392523,-479.09118121,0.00041,30]
[391877672,1760948392553,-4967.0,0.00041,120]
[391877673,1760948392584,-58628.02604784,0.00041,120]
[391877674,1760948392615,-3027.6730302,0.00041,120]
[391877675,1760948392648,-3000.0,0.00041,120]
[391877676,1760948392680,-2096.0,0.00041,120]
[391877677,1760948392712,-2500.0,0.00041,120]
[391877678,1760948392744,-992.45405,0.00041,120]
[391877679,1760948392776,-2500.0,0.00041,120]
[391877680,1760948392808,-2500.0,0.00041,120]
[391877681,1760948392839,-701.89041,0.00041088,30]
[391877682,1760948392870,-30000.0,0.00041096,120]
[391877683,1760948392900,-3221.76,0.00041096,120]
[391877684,1760948392930,-1967.0,0.00041096,120]
[391877685,1760948392961,-1841790.24458595,0.00041172,120]
[391877686,1760948392993,-701.89041,0.00041288,30]
[391877687,1760948393026,-1000.0,0.00041466,60]
[391877688,1760948393059,-701.89041,0.00041488,30]
[391877689,1760948393092,-30000.0,0.000415,120]
[391877690,1760948393130,-2500.0,0.000415,120]
[391877691,1760948393163,-1777.19271731,0.000415,120]
[391877692,1760948393197,-2500.0,0.000415,120]
[391877693,1760948393232,-10091.11285638,0.000415,120]
[391877694,1760948393268,-2500.0,0.000415,120]
[391877695,1760948393303,-3327.27,0.00041643,120]
[391877696,1760948393338,-701.89041,0.00041688,30]
[391877697,1760948393372,-200.0,0.00041827,120]
[391877698,1760948393405,-2000.0,0.0004188,120]
[391877699,1760948393439,-701.89041,0.00041888,30]
[391877700,1760948393471,-10207.93790892,0.000419,120]
[391877701,1760948393504,-50000.0,0.00042,42]
[391877702,1760948393537,-1000.0,0.00042,120]
[391877703,1760948393570,-20262.12386191,0.00042,120]
[391877704,1760948393605,-10024.52332549,0.00042,120]
[391877705,1760948393637,-150.0,0.00042,120]
[391877706,1760948393671,-2500.0,0.00042,120]
[391877707,1760948393704,-2500.0,0.00042,120]
[391877708,1760948393738,-500.0,0.00042327,120]
[391877709,1760948393772,-600.0,0.00042428,60]
[391877710,1760948393805,-1000.0,0.00042466,60]
[391877711,1760948393841,-37789.38995611,0.000425,120]
[391877712,1760948393876,-2500.0,0.000425,120]
[391877713,1760948393909,-1777.19271731,0.000427,120]
[391877714,1760948393941,-10091.11285638,0.000427,120]
[391877715,1760948393974,-3327.27,0.00042739,120]
[391877716,1760948394006,-2512.43823162,0.00042745,120]
[391877717,1760948394038,-1091.0,0.0004275,30]
[391877718,1760948394072,-50000.0,0.00043,43]
[391877719,1760948394103,-1000.0,0.00043,120]
[391877720,1760948394135,-4967.0,0.00043,120]
[391877721,1760948394166,-909.41992924,0.00043,120]
[391877722,1760948394197,-10112.22959296,0.00043,120]
[391877723,1760948394228,-42845.64738323,0.00043,120]
[391877724,1760948394260,-50000.0,0.00043,120]
[391877725,1760948394293,-150.0,0.00043,120]
[391877726,1760948394324,-2500.0,0.00043,120]
[391877727,1760948394355,-2500.0,0.00043,120]
[391877728,1760948394384,-160.17,0.000431,60]
[391877729,1760948394413,-522.46746931,0.0004328,120]
[391877730,1760948394443,-2000.0,0.00043287,64]
[391877731,1760948394474,-650.68,0.000433,120]
[391877732,1760948394504,-203.124727,0.00043327,120]
[391877733,1760948394533,-1000.0,0.00043466,60]
[391877734,1760948394562,-775.161,0.000435,90]
[391877735,1760948394592,-156.0,0.000435,120]
[391877736,1760948394623,-2500.0,0.000435,120]
[391877738,1760948394655,-600.0,0.00043524,60]
[391877739,1760948394687,-202.11098081,0.00043561,64]
[391877740,1760948394721,-1444.0,0.00043562,120]
[391877741,1760948394752,-771.6462175,0.000436,120]
[391877742,1760948394784,-500.0,0.0004366,120]
[391877743,1760948394816,-1064.0,0.00043698,30]
[391877744,1760948394847,-244.64003751,0.000437,120]
[391877745,1760948394880,-1528.0,0.000437,120]
[391877746,1760948394915,-1527.0,0.000437,120]
[391877747,1760948394949,-1642569.15231665,0.000438,120]
[391877750,1760948420499,-1180.70526586,0.000337,120]
[391877751,1760948420536,-160.45153536,0.000337,120]
[391877752,1760948420570,-282.88822215,0.000337,120]
[391877753,1760948420604,-205.44699729,0.000337,120]
[391877754,1760948420639,-898.19608076,0.000337,120]
[391877755,1760948420684,-258.312699,0.00033972,30]
[391877756,1760948420744,-160.45153536,0.000347,120]
[391877757,1760948420782,-1180.70526586,0.000347,120]
[391877758,1760948420816,-282.88822215,0.000347,120]
[391877759,1760948420851,-898.19608076,0.000347,120]
[391877760,1760948420886,-205.44699729,0.000347,120]
[391877761,1760948420942,-1180.70526586,0.000358,120]
[391877762,1760948420979,-160.45153536,0.000358,120]
[391877763,1760948421018,-282.88822215,0.000358,120]
[391877764,1760948421053,-898.19608076,0.000358,120]
[391877765,1760948421086,-205.44699729,0.000358,120]
[391877766,1760948421135,-1180.70526586,0.000368,120]
[391877767,1760948421170,-160.45153536,0.000368,120]
[391877768,1760948421203,-282.88822215,0.000368,120]
[391877769,1760948421236,-898.19608076,0.000368,120]
[391877770,1760948421288,-1180.70526586,0.000379,120]
[391877771,1760948421326,-160.45153536,0.000379,120]
[391877772,1760948421361,-282.88822215,0.000379,120]
[391877773,1760948421396,-898.19608076,0.000379,120]
[391877774,1760948421444,-500.0,0.00042054,60]
[391877775,1760948421478,-500.0,0.00042602,60]
[391877776,1760948421513,-286.295,0.00042824,30]
[391877777,1760948421550,-500.0,0.0004315,60]
[391877778,1760948421586,-200.0,0.00043697,30]
[391877779,1760948421627,-207.4,0.00043697,30]
[391877780,1760948421668,-215.0738,0.00043697,30]
[391877781,1760948421703,-234.93626196,0.00043697,30]
[391877782,1760948421740,-500.0,0.00043698,60]
[391877783,1760948421775,-500.0,0.00043799,120]
[391877784,1760948421811,-250.0,0.00043799,120]
[391877785,1760948421846,-500.0,0.00043799,120]
[391877786,1760948421881,-500.0,0.00043799,120]
[391877787,1760948421915,-500.0,0.00043799,120]
[391877788,1760948421954,-250.0,0.00043799,120]
[391877789,1760948421993,-500.0,0.00043799,120]
[391877790,1760948422031,-500.0,0.00043799,120]
[391877791,1760948422067,-500.0,0.00043799,120]
[391877792,1760948422103,-518.5,0.00043799,120]
[391877793,1760948422138,-161.50410397,0.00043799,120]
[391877794,1760948422174,-500.0,0.00043799,120]
[391877795,1760948422211,-250.0,0.00043799,120]
[391877796,1760948422245,-537.6845,0.00043799,120]
[391877797,1760948422290,-500.0,0.00043799,120]
[391877798,1760948422330,-500.0,0.00043799,120]
[391877799,1760948422367,-500.0,0.00043799,120]
[391877800,1760948422402,-250.0,0.00043799,120]
[391877801,1760948422436,-500.0,0.00043799,120]
[391877802,1760948422471,-500.0,0.00043799,120]
[391877803,1760948422503,-500.0,0.00043799,120]
[391877804,1760948422536,-557.5788265,0.00043799,120]
[391877805,1760948422570,-500.0,0.00043799,120]
[391877806,1760948422602,-250.0,0.00043799,120]
[391877807,1760948422634,-578.20924308,0.00043799,120]
[391877808,1760948422669,-500.0,0.00043799,120]
[391877809,1760948422703,-500.0,0.00043799,120]
[391877810,1760948422737,-500.0,0.00043799,120]
[391877811,1760948422771,-500.0,0.00043799,120]
[391877812,1760948422804,-250.0,0.00043799,120]
[391877813,1760948422839,-500.0,0.00043799,120]
[391877814,1760948422873,-500.0,0.00043799,120]
[391877815,1760948422908,-331.73159983,0.00043799,120]
[391877816,1760948422943,-500.0,0.00043799,120]
[391877817,1760948422980,-500.0,0.00043799,120]
[391877818,1760948423017,-250.0,0.00043799,120]
[391877819,1760948423055,-500.0,0.00043799,120]
[391877820,1760948423092,-500.0,0.00043799,120]
[391877821,1760948423130,-500.0,0.00043799,120]
[391877822,1760948423172,-500.0,0.00043799,120]
[391877823,1760948423211,-250.0,0.00043799,120]
[391877824,1760948423252,-500.0,0.00043799,120]
[391877825,1760948423293,-500.0,0.00043799,120]
[391877826,1760948423332,-500.0,0.00043799,120]
[391877827,1760948423369,-500.0,0.00043799,120]
[391877828,1760948423407,-151.0,0.00043799,120]
[391877829,1760948423656,-600.0,0.00043799,120]
[391877830,1760948423710,-250.0,0.00043799,120]
[391877831,1760948423750,-591.984742,0.00043799,120]
[391877832,1760948423792,-500.0,0.00043799,120]
[391877833,1760948423832,-500.0,0.00043799,120]
[391877834,1760948423873,-500.0,0.00043799,120]
[391877835,1760948423912,-151.0,0.00043799,120]
[391877836,1760948423951,-520.0,0.00043799,120]
[391877837,1760948423989,-600.0,0.00043799,120]
[391877838,1760948424028,-500.0,0.00043799,120]
[391877839,1760948424064,-151.0,0.00043799,120]
[391877840,1760948424101,-212.8062323,0.00043799,120]
[391877841,1760948424136,-500.0,0.00043799,120]
[391877842,1760948424172,-151.0,0.00043799,120]
[391877843,1760948424207,-600.0,0.00043799,120]
[391877844,1760948424244,-151.0,0.00043799,120]
[391877845,1760948424281,-600.0,0.00043799,120]
[391877846,1760948424317,-250.0,0.00043799,120]
[391877847,1760948424351,-151.0,0.00043799,120]
[391877848,1760948424384,-600.0,0.00043799,120]
[391877849,1760948424417,-250.0,0.00043799,120]
[391877850,1760948424452,-151.0,0.00043799,120]
[391877851,1760948424489,-250.0,0.00043799,120]
[391877852,1760948424522,-151.0,0.00043799,120]
[391877853,1760948424555,-600.0,0.00043799,120]
[391877854,1760948424588,-152.97120212,0.00043799,120]
[391877855,1760948424622,-250.0,0.00043799,120]
[391877856,1760948424655,-250.0,0.00043799,120]
[391877857,1760948424693,-151.0,0.00043799,120]
[391877858,1760948424728,-600.0,0.00043799,120]
[391877859,1760948424765,-250.0,0.00043799,120]
[391877860,1760948424803,-250.0,0.00043799,120]
[391877861,1760948424837,-151.0,0.00043799,120]
[391877862,1760948424872,-600.0,0.00043799,120]
[391877863,1760948424907,-250.0,0.00043799,120]
[391877864,1760948424943,-250.0,0.00043799,120]
[391877865,1760948424975,-600.0,0.00043799,120]
[391877866,1760948425010,-151.0,0.00043799,120]
[391877867,1760948425043,-250.0,0.00043799,120]
[391877868,1760948425076,-250.0,0.00043799,120]
[391877869,1760948425107,-600.0,0.00043799,120]
[391877870,1760948425146,-151.0,0.00043799,120]
[391877871,1760948425181,-250.0,0.00043799,120]
[391877872,1760948425217,-500.0,0.00043799,120]
[391877873,1760948425258,-250.0,0.00043799,120]
[391877874,1760948425296,-250.0,0.00043799,120]
[391877875,1760948425332,-151.0,0.00043799,120]
[391877876,1760948425365,-375206.05091985,0.000438,120]
[391877877,1760948425401,-262.07,0.000438,120]
[391877878,1760948425433,-151.0,0.000438,120]
[391877879,1760948425465,-151.0,0.000438,120]
[391877880,1760948425496,-1572.61581251,0.00043835,120]
[391877881,1760948425531,-3327.27,0.00043835,120]
[391877882,1760948425563,-540.0,0.000439,120]
[391877883,1760948425594,-100702.58484264,0.00043987,120]
[391877884,1760948425629,-2722.53147338,0.00043989,70]
[391877885,1760948425667,-50000.0,0.00044,44]
[391877886,1760948425701,-68416.58059329,0.00044,120]
[391877887,1760948425738,-3500.0,0.00044,120]
[391877888,1760948425784,-291.81894013,0.00044,120]
[391877889,1760948425824,-1137.98040555,0.00044,120]
[391877890,1760948425863,-814.96957542,0.00044,30]
[391877891,1760948425900,-1063.58236051,0.00044,120]
[391877892,1760948425937,-3837.57,0.00044,120]
[391877893,1760948425973,-263.0226746,0.00044,120]
[391877894,1760948426008,-17678.32928594,0.00044,120]
[391877895,1760948426044,-292841.0920658,0.00044,120]
[391877896,1760948426078,-150.0,0.00044,120]
[391877897,1760948426114,-544.530115,0.00044,57]
[391877898,1760948426149,-2500.0,0.00044,120]
[391877899,1760948426182,-215.86,0.00044,30]
[391877900,1760948426215,-153.0,0.000441,120]
[391877901,1760948426249,-759.96280943,0.00044103,120]
[391877902,1760948426282,-216199.16390845,0.00044135,30]
[391877903,1760948426316,-1064.0,0.00044148,30]
[391877904,1760948426350,-500.0,0.00044246,60]
[391877905,1760948426383,-35236.53647752,0.00044346,120]
[391877906,1760948426418,-413.49427679,0.00044347,120]
[391877907,1760948426454,-213.85311753,0.00044351,120]
[391877908,1760948426488,-1375.98039207,0.00044354,120]
[391877909,1760948426524,-395.56214054,0.00044357,120]
[391877910,1760948426558,-395.56214054,0.00044358,120]
[391877911,1760948426591,-32926.81533564,0.0004436,120]
[391877912,1760948426623,-213.85311753,0.00044361,120]
[391877913,1760948426661,-213.85311753,0.00044361,120]
[391877914,1760948426697,-495.90209986,0.00044366,120]
[391877915,1760948426732,-413.49427679,0.00044369,120]
[391877916,1760948426771,-32926.81533564,0.0004437,120]
[391877917,1760948426809,-2435.05537245,0.00044379,120]
[391877918,1760948426847,-662.74705366,0.0004438,120]
[391877919,1760948426882,-9106.30048758,0.00044381,120]
[391877920,1760948426916,-1375.98039206,0.00044383,120]
[391877921,1760948426954,-1126.90019393,0.00044384,120]
[391877922,1760948426995,-2435.05537245,0.00044391,120]
[391877923,1760948427031,-24441.07209828,0.00044391,120]
[391877924,1760948427065,-35236.53647752,0.00044394,120]
[391877925,1760948427099,-488.72343965,0.000444,120]
[391877926,1760948427133,-100168.63228133,0.000444,30]
[391877927,1760948427167,-35236.53647752,0.00044402,120]
[391877928,1760948427200,-24441.07209828,0.00044403,120]
[391877929,1760948427233,-426.45140086,0.00044407,120]
[391877930,1760948427267,-1473.1957484,0.00044408,120]
[391877931,1760948427300,-277.06809705,0.00044412,120]
[391877932,1760948427335,-495.90209986,0.00044416,120]
[391877933,1760948427593,-5824.00014213,0.00044416,120]
[391877934,1760948427629,-313.49739492,0.00044417,120]
[391877935,1760948427665,-24441.07209829,0.00044417,120]
[391877936,1760948427699,-662.74705366,0.00044417,120]
[391877937,1760948427734,-5131.65713655,0.00044422,120]
[391877938,1760948427771,-5131.65713655,0.00044427,120]
[391877939,1760948427806,-35236.53647752,0.00044429,120]
[391877940,1760948427841,-662.74705366,0.0004443,120]
[391877941,1760948427878,-1473.1957484,0.00044432,120]
[391877942,1760948427913,-129313.36434649,0.00044435,120]
[391877943,1760948427951,-5131.65713655,0.00044436,120]
[391877944,1760948427986,-5824.00014213,0.00044438,120]
[391877945,1760948428022,-24441.07209829,0.00044444,120]
[391877946,1760948428058,-6767.17518102,0.00044444,120]
[391877947,1760948428094,-1473.1957484,0.00044445,120]
[391877948,1760948428132,-727.29623081,0.00044446,120]
[391877949,1760948428168,-32926.81533564,0.00044455,120]
[391877950,1760948428203,-1375.98039206,0.00044458,120]
[391877951,1760948428238,-277.06809705,0.00044461,120]
[391877952,1760948428278,-129313.36434649,0.00044465,120]
[391877953,1760948428313,-1000.0,0.00044466,60]
[391877954,1760948428349,-129313.36434649,0.00044468,120]
[391877955,1760948428384,-213.85311753,0.00044469,120]
[391877956,1760948428419,-24441.07209828,0.0004447,120]
[391877957,1760948428454,-277.06809705,0.00044478,120]
[391877958,1760948428491,-24441.07209828,0.00044482,120]
[391877959,1760948428524,-426.45140086,0.00044484,120]
[391877960,1760948428561,-727.29623081,0.00044487,120]
[391877961,1760948428599,-1375.98039207,0.00044489,120]
[391877962,1760948428632,-395.56214054,0.00044492,120]
[391877963,1760948428665,-1473.1957484,0.00044492,120]
[391877964,1760948428703,-413.49427679,0.00044499,120]
[391877965,1760948428738,-2500.0,0.000445,120]
[391877966,1760948428774,-313.49739492,0.00044503,120]
[391877967,1760948428810,-2435.05537245,0.00044507,120]
[391877968,1760948428844,-24441.07209828,0.00044507,120]
[391877969,1760948428881,-9106.30048758,0.00044512,120]
[391877970,1760948428918,-32926.81533564,0.00044512,120]
[391877971,1760948428957,-129313.36434649,0.00044517,120]
[391877972,1760948428993,-7640.85333991,0.00044517,120]
[391877973,1760948429032,-1375.98039207,0.00044518,120]
[391877974,1760948429070,-1126.90019393,0.00044518,120]
[391877975,1760948429105,-7640.85333991,0.00044519,120]
[391877976,1760948429137,-1473.1957484,0.0004452,120]
[391877977,1760948429171,-426.45140086,0.00044522,120]
[391877978,1760948429205,-5824.00014213,0.00044523,120]
[391877979,1760948429238,-7640.85333991,0.00044524,120]
[391877980,1760948429273,-1126.90019393,0.00044526,120]
[391877981,1760948429308,-495.90209986,0.00044527,120]
[391877982,1760948429344,-727.29623081,0.00044528,120]
[391877983,1760948429379,-9106.30048758,0.00044531,120]
[391877984,1760948429415,-313.49739492,0.00044531,120]
[391877985,1760948429451,-24441.07209829,0.00044531,120]
[391877986,1760948429487,-313.49739492,0.00044534,120]
[391877987,1760948429522,-1375.98039207,0.00044536,120]
[391877988,1760948429557,-129313.36434649,0.00044538,120]
[391877989,1760948429592,-313.49739492,0.00044544,120]
[391877990,1760948429629,-7640.85333991,0.00044544,120]
[391877991,1760948429667,-1126.90019393,0.00044547,120]
[391877992,1760948429704,-5131.65713655,0.00044547,120]
[391877993,1760948429742,-2972.11244889,0.0004455,120]
[391877994,1760948429780,-413.49427679,0.00044551,120]
[391877995,1760948429816,-426.45140086,0.00044553,120]
[391877996,1760948429852,-35236.53647752,0.00044554,120]
[391877997,1760948429890,-2435.05537245,0.00044556,120]
[391877998,1760948429928,-24441.07209828,0.00044558,120]
[391877999,1760948429967,-1126.90019393,0.0004456,120]
[391878000,1760948430008,-24441.07209829,0.00044561,120]
[391878001,1760948430048,-35236.53647752,0.00044561,120]
[391878002,1760948430086,-2435.05537245,0.00044565,120]
[391878003,1760948430126,-9106.30048758,0.00044566,120]
[391878004,1760948430164,-5131.65713655,0.00044569,120]
[391878005,1760948430203,-1473.1957484,0.00044571,120]
[391878006,1760948430241,-426.45140086,0.00044581,120]
[391878007,1760948430282,-1375.98039206,0.00044582,120]
[391878008,1760948430322,-2435.05537245,0.00044583,120]
[391878009,1760948430361,-32926.81533564,0.00044587,120]
[391878010,1760948430401,-495.90209986,0.00044594,120]
[391878011,1760948430439,-213.85311753,0.00044595,120]
[391878012,1760948430478,-5824.00014213,0.00044595,120]
[391878013,1760948430515,-413.49427679,0.00044597,120]
[391878014,1760948430554,-413.49427679,0.00044599,120]
[391878015,1760948430592,-1064.0,0.00044599,30]
[391878016,1760948430628,-395.56214054,0.00044609,120]
[391878017,1760948430665,-727.29623081,0.0004461,120]
[391878018,1760948430701,-1126.90019393,0.00044611,120]
[391878019,1760948430737,-1375.98039206,0.00044611,120]
[391878020,1760948430776,-213.85311753,0.00044612,120]
[391878021,1760948430813,-129313.36434649,0.00044612,120]
[391878022,1760948430848,-32926.81533564,0.00044613,120]
[391878023,1760948430882,-1375.98039206,0.00044614,120]
[391878024,1760948430916,-662.74705366,0.00044617,120]
[391878025,1760948430952,-395.56214054,0.0004462,120]